Cogmind - Beta 14 @@@ ROGUE MODE // 2024.09.02 @ 17:17:04 Player: Bardic Entropy Result: Self-destructed Performance ------------- Evolutions (2) 1000 Regions Visited (5) 1000 Robots Destroyed (27) 135 Value Destroyed (542) 542 Prototype IDs (23) 460 Alien Tech Used (0) 0 Bonus (300) 300 TOTAL SCORE: 3437 Bonus ------- Aligned with FarCom 300 Cogmind --------- Core Integrity 489/550 Matter 233/300 Energy 240/240 System Corruption 0% Temperature Cool (0) Movement Rolling (125) Ox3 Location -8/Materials Parts ------- > --- POWER (1) -------- Nuclear Core > --- PROPULSION (2) --- Improved Treads Wheel > --- UTILITY (4) ------ Large Storage Unit Structural Scanner Signal Interpreter 0b10 Alert Chip > --- WEAPON (4) ------- Pulse Rifle Assault Rifle Light Assault Rifle Heavy Assault Rifle > --- INVENTORY (15) --- Light Nuclear Core Light Treads Light Treads Wheel High-capacity Storage Unit Large Matter Pod (29) Sensor Array Recoil Stabilizer Assault Rifle Grenade Launcher Heavy Flail Peak State ------------ > --- POWER ------------ Nuclear Core > --- PROPULSION ------- Improved Treads Wheel > --- UTILITY ---------- Large Storage Unit Structural Scanner Signal Interpreter 0b10 Alert Chip > --- WEAPON ----------- Pulse Rifle Assault Rifle Light Assault Rifle Heavy Assault Rifle > --- INVENTORY -------- Light Nuclear Core Light Treads Light Treads Wheel High-capacity Storage Unit Large Matter Pod Sensor Array Recoil Stabilizer Assault Rifle Grenade Launcher Heavy Flail [Rating: 23] Favorites ----------- Power Light Ion Engine Engine Light Ion Engine Power Core Light Nuclear Core Propulsion Wheel Treads Light Treads Wheel Wheel Utility Large Storage Unit Device Structural Scanner Storage Large Storage Unit Processor Signal Interpreter Weapon Assault Rifle Energy Gun Pulse Rifle Ballistic Gun Assault Rifle Launcher Grenade Launcher Build | -11 -10 -10 -10 -9 -8 ------- Run | Yrd Mat Min Exi Min Mat Slots Evolved 4 | . . . . . 4 Power . | . . . . . . Propulsion . | . . . . . . Utility 2 | . . . . . 2 Weapon 2 | . . . . . 2 Parts Attached 28 | 7 9 . 1 4 7 Power 4 | 1 1 . . 1 1 Engine 2 | 1 1 . . . . Core 2 | . . . . 1 1 Reactor . | . . . . . . Propulsion 7 | 2 3 . . 1 1 Treads 4 | 1 2 . . . 1 Leg . | . . . . . . Wheel 3 | 1 1 . . 1 . Hover . | . . . . . . Flight . | . . . . . . Utility 7 | 2 2 . 1 . 2 Device 1 | . . . . . 1 Storage 4 | 2 1 . 1 . . Processor 2 | . 1 . . . 1 Hackware . | . . . . . . Protection . | . . . . . . Artifact . | . . . . . . Weapon 10 | 2 3 . . 2 3 Energy Gun 1 | . . . . . 1 Energy Cannon . | . . . . . . Ballistic Gun 8 | 2 3 . . 1 2 Ballistic Cannon . | . . . . . . Launcher 1 | . . . . 1 . Special Weapon . | . . . . . . Impact Weapon . | . . . . . . Slashing Weapon . | . . . . . . Piercing Weapon . | . . . . . . Special Melee Weapon . | . . . . . . Unidentified Prototypes . | . . . . . . Parts Lost . | . . . . . . Power . | . . . . . . Propulsion . | . . . . . . Utility . | . . . . . . Weapon . | . . . . . . Highest Loss Streak . | . . . . . . To Critical Strikes . | . . . . . . Average Slot Usage (%) 98 | . 96 100 100 100 98 Engine 7 | . 14 14 14 . . Core 6 | . . . . 13 9 Treads 13 | . 14 14 14 14 9 Wheel 13 | . 13 14 14 14 9 Device 1 | . . . . . 9 Storage 13 | . 14 14 14 14 9 Processor 13 | . 9 14 14 14 18 Energy Gun 1 | . . . . . 7 Ballistic Gun 27 | . 28 28 28 27 27 Peak Build Rating 23 | 7 8 8 8 10 23 Average Rating 10 | 6 6 8 8 9 21 On Entrance 6 | . 7 8 8 8 10 Naked Turns . | . . . . . . Heaviest Build 37 | 16 27 27 27 30 37 Greatest Support 40 | 20 40 10 10 10 10 Greatest Overweight (x) 3 | 1 2 2 2 2 3 Average Overweight (x) 2 | . 1 2 2 2 3 Largest Inventory Capacity 15 | 8 15 15 15 15 15 Average Capacity 14 | 7 14 15 15 15 15 Most Carried 12 | 2 10 10 12 11 11 Average Carried 8 | 1 6 10 10 10 9 Final Capacity 15 | 8 15 15 15 15 15 Final Carried 11 | 2 10 10 10 10 11 Class Distribution -------------------- 69% | Mutant 16% | Scavenger-Mutant 10% | Skirmisher 3% | Scavenger-Skirmisher Dominant Class ---------------- Mutant | -10/Materials Mutant | -10/Mines Mutant | -10/Exiles Mutant | -9/Mines Skirmisher | -8/Materials Resources | -11 -10 -10 -10 -9 -8 ----------- Run | Yrd Mat Min Exi Min Mat Matter Collected 864 | 308 253 . . 213 90 Remotely . | . . . . . . Salvage Created 738 | 95 378 . . 175 90 Parts 57 | 4 31 . . 15 7 Haulers Intercepted 1 | . 1 . . . . Recyclers Shooed 1 | 1 . . . . . Parts Field Recycled . | . . . . . . Retrieved Matter . | . . . . . . Parts Self-Destructed . | . . . . . . Prevented . | . . . . . . Kills | -11 -10 -10 -10 -9 -8 ------- Run | Yrd Mat Min Exi Min Mat Combat Hostiles Destroyed 18 | . 9 . . 7 2 Guns 15 | . 9 . . 4 2 AOE 3 | . . . . 3 . Classes Destroyed 9 | 2 5 . . . 2 Worker 1 | . 1 . . . . Tunneler 3 | 2 . . . 1 . Hauler 1 | . 1 . . . . Recycler 2 | 1 1 . . . . Watcher 2 | . 2 . . . . Swarmer 9 | . 6 . . 3 . Grunt 7 | . 3 . . 4 . Sentry 1 | . . . . . 1 Hunter 1 | . . . . . 1 Best Kill Streak 4 | 2 3 . . 4 2 Combat Bots Only 3 | . 3 . . 3 2 Max Kills in Single Turn 3 | 1 1 . . 3 1 Gunslinging . | . . . . . . Exploded 2 | . . . . 2 . Melee . | . . . . . . Uniques/NPCs Destroyed . | . . . . . . Combat | -11 -10 -10 -10 -9 -8 -------- Run | Yrd Mat Min Exi Min Mat Hostile Shots Fired 87 | . 37 . . 16 34 Missed 27 | . 9 . . 7 11 Damage Taken 743 | . 326 . . 113 304 Core 139 | . 59 . . 19 61 Absorbed by Shields . | . . . . . . Core Remaining (%) 84 | 100 . . . 68 . Volleys Fired 74 | 11 45 . . 14 4 Largest 4 | 2 2 . . 2 4 Hottest 126 | 40 40 . . 40 126 Shots Fired 154 | 22 90 . . 26 16 Gun 152 | 22 90 . . 24 16 Cannon . | . . . . . . Launcher 2 | . . . . 2 . Special . | . . . . . . Kinetic 148 | 22 90 . . 24 12 Thermal 4 | . . . . . 4 Explosive 2 | . . . . 2 . Electromagnetic . | . . . . . . Robot Hit Streak 9 | 6 9 . . 8 8 Robot Miss Streak 5 | 1 5 . . 3 1 Penetration Max . | . . . . . . Secondary Targets 2 | . 2 . . . . Max Gunslinging Chain 1 | . 1 . . . . Shots Hit Robots 99 | 15 51 . . 19 14 Core Hits 50 | 6 26 . . 13 5 Critical Kills . | . . . . . . Critical Parts Destroyed . | . . . . . . Critical Strikes . | . . . . . . Melee Attacks . | . . . . . . Impact . | . . . . . . Slashing . | . . . . . . Piercing . | . . . . . . Sneak Attacks . | . . . . . . Combat Hostiles . | . . . . . . Follow-up Attacks . | . . . . . . Damage Inflicted 1303 | 156 569 . . 414 164 Guns 1113 | 156 569 . . 224 164 Cannons . | . . . . . . Explosions 190 | . . . . 190 . Melee . | . . . . . . Ramming . | . . . . . . Kinetic 1043 | 156 569 . . 224 94 Thermal 70 | . . . . . 70 Explosive 190 | . . . . 190 . Electromagnetic . | . . . . . . Impact . | . . . . . . Slashing . | . . . . . . Piercing . | . . . . . . Highest Corruption 1 | . 1 1 1 1 . Average Corruption 1 | . 1 1 1 1 . Corruption Purged . | . . . . . . Corruption Blocked . | . . . . . . Effects 11 | . 3 . 1 7 . Message Errors 2 | . 1 . . 1 . Matter Fused 4 | . 1 . . 3 . Heat Flow Errors 3 | . 1 . . 2 . Energy Discharges 1 | . . . . 1 . Data Loss (minor) 1 | . . . 1 . . Overload Shots . | . . . . . . Overflow Damage 3 | . . . . 3 . Projectiles . | . . . . . . Explosions 3 | . . . . 3 . Melee . | . . . . . . Knockbacks . | . . . . . . Impact . | . . . . . . Kinetic . | . . . . . . Secondary . | . . . . . . Self-Inflicted Damage 59 | . 59 . . . . Shots 2 | . 2 . . . . Rammed . | . . . . . . Targets Rammed . | . . . . . . Kicked . | . . . . . . Crushed . | . . . . . . Highest Temperature 200 | . 200 . . 177 138 Average Temperature 65 | . 64 . . 64 66 Received Heat Transfer 168 | . 78 . . 54 36 Siege Activations . | . . . . . . Robots Corrupted . | . . . . . . Combat Hostiles . | . . . . . . Parts Fried . | . . . . . . Impact Corruptions . | . . . . . . Robots Melted . | . . . . . . Combat Hostiles . | . . . . . . Parts Melted . | . . . . . . Heat Transferred 148 | . . . . . 148 Parts Sabotaged . | . . . . . . Parts Stolen . | . . . . . . Parts Stripped . | . . . . . . Power Chain Reactions . | . . . . . . Alert | -11 -10 -10 -10 -9 -8 ------- Run | Yrd Mat Min Exi Min Mat Peak Influence 268 | 15 268 30 . 105 120 Initial 30 | . 9 30 . . . Average 72 | 7 121 30 . 54 29 Maximum Alert Level 1 | . 1 . . . . Low Security (%) 94 | 100 85 100 . 100 100 Level 1 5 | . 14 . . . . Level 2 . | . . . . . . Level 3 . | . . . . . . Level 4 . | . . . . . . Level 5 . | . . . . . . High Security . | . . . . . . Max Security . | . . . . . . Squads Dispatched 3 | . 2 . . . 1 Investigation 1 | . . . . . 1 Extermination . | . . . . . . Reinforcement 2 | . 2 . . . . Assault . | . . . . . . Garrison . | . . . . . . Intercept . | . . . . . . Searches Triggered . | . . . . . . Construction Impeded . | . . . . . . Haulers Reinforced . | . . . . . . Active Scanning Responses . | . . . . . . Cargo Convoy Interrupts . | . . . . . . Stealth | -11 -10 -10 -10 -9 -8 --------- Run | Yrd Mat Min Exi Min Mat Distress Signals 2 | . 2 . . . . Communications Jammed . | . . . . . . Distress Signals . | . . . . . . Times Spotted 34 | . 21 . . 9 4 Peak Tracking Total 7 | . 5 . . 4 7 Tactical Retreats 5 | . 2 . . 1 2 Traps | -11 -10 -10 -10 -9 -8 ------- Run | Yrd Mat Min Exi Min Mat Traps Triggered . | . . . . . . Indirectly . | . . . . . . Trap Hack Attempts . | . . . . . . Triggered . | . . . . . . Disarmed . | . . . . . . Reprogrammed . | . . . . . . Reused . | . . . . . . Traps Extracted . | . . . . . . Installed . | . . . . . . Triggered . | . . . . . . Machines | -11 -10 -10 -10 -9 -8 ---------- Run | Yrd Mat Min Exi Min Mat Machines Disabled 2 | . 2 . . . . Max in Single Turn 1 | . 1 . . . . Machines Repaired . | . . . . . . Machines Dismantled . | . . . . . . Machines Sabotaged . | . . . . . . Overloaded Fab Kills . | . . . . . . Hacking | -11 -10 -10 -10 -9 -8 --------- Run | Yrd Mat Min Exi Min Mat Machines Accessed 8 | . 4 . 1 1 2 Terminals 6 | . 4 . . . 2 Fabricators . | . . . . . . Repair Stations . | . . . . . . Recycling Units . | . . . . . . Scanalyzers . | . . . . . . Garrison Access . | . . . . . . Total Hacks 20 | . 13 . 1 1 5 Successful 10 | . 6 . 1 1 2 Failed 10 | . 7 . . . 3 Catastrophic 1 | . 1 . . . . Database Lockouts . | . . . . . . Manual 20 | . 13 . 1 . 6 Terminals 18 | . 13 . . . 5 Fabricators . | . . . . . . Repair Stations . | . . . . . . Recycling Units . | . . . . . . Scanalyzers . | . . . . . . Garrison Access . | . . . . . . Terminal Hacks 2 | . . . 1 1 . Open Door 1 | . . . . 1 . Derelict Proto ID Bank 1 | . . . 1 . . Fabricator Hacks . | . . . . . . Repair Station Hacks . | . . . . . . Recycling Unit Hacks . | . . . . . . Scanalyzer . | . . . . . . Garrison Access Hacks . | . . . . . . Unauthorized Hacks 8 | . 6 . . . 2 Terminals 8 | . 6 . . . 2 Assimilate 1 | . 1 . . . . Botnet 6 | . 4 . . . 2 Skim 1 | . 1 . . . . Fabricators . | . . . . . . Repair Stations . | . . . . . . Recycling Units . | . . . . . . Scanalyzers . | . . . . . . Garrison Access . | . . . . . . Data Cores Recovered . | . . . . . . Used . | . . . . . . Hacking Detections 7 | . 4 . . . 3 Full Trace Events 3 | . 2 . . . 1 Feedback Events . | . . . . . . Feedback Blocked . | . . . . . . Robot Schematics Acquired . | . . . . . . Robots Built . | . . . . . . Authchips . | . . . . . . Time . | . . . . . . Total Robot Build Rating . | . . . . . . Part Schematics Acquired . | . . . . . . Parts Built . | . . . . . . Authchips . | . . . . . . Time . | . . . . . . Total Part Build Rating . | . . . . . . Parts Repaired . | . . . . . . Time . | . . . . . . Parts Recycled . | . . . . . . Recycled Matter . | . . . . . . Retrieved Matter . | . . . . . . Retrieved Components . | . . . . . . Parts Scanalyzed . | . . . . . . Part Schematics Acquired . | . . . . . . Parts Damaged . | . . . . . . Bothacking | -11 -10 -10 -10 -9 -8 ------------ Run | Yrd Mat Min Exi Min Mat Used RIF Installer . | . . . . . . Robots Hacked . | . . . . . . Non-combat . | . . . . . . Combat . | . . . . . . Robot Hacks Applied . | . . . . . . Relay Couplers Released . | . . . . . . Fabnet Peak Effective % . | . . . . . . Robots Rewired . | . . . . . . Allies Hacked . | . . . . . . Hacks Repelled . | . . . . . . Allies | -11 -10 -10 -10 -9 -8 -------- Run | Yrd Mat Min Exi Min Mat Total Allies . | . . . . . . Largest Group . | . . . . . . Highest-Rated Group . | . . . . . . Highest-Rated Ally . | . . . . . . Total Orders . | . . . . . . Ally Attacks . | . . . . . . Total Damage . | . . . . . . Kills . | . . . . . . Allies Corrupted . | . . . . . . Allies Melted . | . . . . . . Intel | -11 -10 -10 -10 -9 -8 ------- Run | Yrd Mat Min Exi Min Mat Robot Analysis Total . | . . . . . . Derelict Logs Recovered 1 | . . . . 1 . Drone Launches . | . . . . . . Drone Recoveries . | . . . . . . Exploration | -11 -10 -10 -10 -9 -8 ------------- Run | Yrd Mat Min Exi Min Mat Turns Passed 2597 | 156 893 14 254 925 355 Spaces Moved 1888 | 78 599 13 228 706 264 Core 10 | 10 . . . . . Treads 120 | 65 55 . . . . Legs . | . . . . . . Wheels 1758 | 3 544 13 228 706 264 Hover . | . . . . . . Flight . | . . . . . . Fastest Speed 50 | 50 110 110 110 110 125 Average Speed 115 | 145 116 110 110 110 125 Slowest Speed 240 | 160 240 110 110 110 125 Overloaded Moves . | . . . . . . Propulsion Burnouts . | . . . . . . Robots Hopped . | . . . . . . Cave-ins Triggered . | . . . . . . Exploration Rate (%) 50 | 6 93 4 62 95 42 Regions Visited 5 Branch Regions 3 Pre-discovered Areas . | . . . . . . Known Exits Taken 4 | . 1 1 1 1 . Unknown Exits Taken 1 | 1 . . . . . Scrap Searched 1 | . . . . 1 . Spaces Dug . | . . . . . . Terrain Destroyed 16 | . . . . 16 . Melee . | . . . . . . Projectile . | . . . . . . AOE 16 | . . . . 16 . Terrain Rammed . | . . . . . . Walls Destroyed . | . . . . . . Machines Disabled . | . . . . . . Actions | -11 -10 -10 -10 -9 -8 --------- Run | Yrd Mat Min Exi Min Mat Total 2151 | 97 706 12 231 827 278 Wait 144 | . 42 . . 102 . Move 1883 | 77 598 12 227 705 264 Hop . | . . . . . . Pick Up 12 | 2 7 . 1 . 2 Fast Attach 9 | 7 1 . . . 1 Attach 3 | . . . . . 3 Detach . | . . . . . . Swap 16 | . 8 . 1 4 3 Drop 10 | . 5 . 2 2 1 Fire 74 | 11 45 . . 14 4 Melee . | . . . . . . Ram . | . . . . . . Kick . | . . . . . . Crush . | . . . . . . Escape Stasis . | . . . . . . Rewire . | . . . . . . Trap . | . . . . . . Miscellaneous . | . . . . . . Route ------- -11/Scrapyard -10/Materials (discovered 5 exits: *Mat x3 / *Min x2) -10/Mines -10/Exiles -9/Mines -8/Materials History --------- Turn | Location | Event 18 | -11/Scrapyard | Discovered new exit (range 15) 157 | -11/Scrapyard | Entered Materials 308 | -10/Materials | Build established: Mutant 376 | -10/Materials | Discovered new exit (range 13) 452 | -10/Materials | Discovered new exit (range 12) 468 | -10/Materials | Identified exit to Mines 548 | -10/Materials | Identified exit to Materials 641 | -10/Materials | Discovered exit to Materials (range 16) 810 | -10/Materials | Discovered exit to Materials (range 16) 1036 | -10/Materials | Discovered exit to Mines (range 8) 1050 | -10/Materials | Entered Mines 1058 | -10/Mines | Deemed a non-threat by the Exiles lab entrance 1059 | -10/Mines | Discovered new exit (range 5) 1063 | -10/Mines | Identified exit to Exiles 1064 | -10/Mines | Entered Exiles 1091 | -10/Exiles | Met 8R-AWN 1111 | -10/Exiles | Met EX-HEX 1140 | -10/Exiles | Met EX-BIN 1154 | -10/Exiles | Aligned with FarCom system 1155 | -10/Exiles | Given EX-Vault access code 1181 | -10/Exiles | Opened EX-Vault 1187 | -10/Exiles | Found 0b10 Alert Chip 1211 | -10/Exiles | Warned to stay clear of 0b10 Research branches 1241 | -10/Exiles | Met EX-DEC 1304 | -10/Exiles | Discovered new exit (range 14) 1317 | -10/Exiles | Identified exit to Mines 1318 | -10/Exiles | Left Exiles lab with 0b10 Alert Chip 1318 | -10/Exiles | Entered Mines 1692 | -9/Mines | Found the Drone Emporium 1767 | -9/Mines | YI-UF0 nonchalantly dropped a Grenade Launcher on the ground 1992 | -9/Mines | Discovered new exit (range 5) 2124 | -9/Mines | Build established: Scavenger-Mutant 2198 | -9/Mines | Learned 4 Materials zone layouts 2242 | -9/Mines | Identified exit to Materials 2243 | -9/Mines | Entered Materials 2243 | -8/Materials | Evolved 4 slots: Utility x2, Weapon x2 2598 | -8/Materials | Self-destructed Last Messages --------------- Testing... Terminal linked with 1 system. Awaiting botnet instructions. 02381_ ALERT: Suspicious activity at Terminal M010. Dispatching Investigation squad. 02392_ Penetrated by Slug. 02418_ K-01 Serf cleans the Terminal. 02423_ Acquired Hvy. Flail. 02424_ K-01 Serf cleans the Terminal. 02472_ Drone sends a signal. 02473_ Slug penetrates Wall. 02541_ Slug penetrates Repair Station. 02545_ Slug penetrates Wall. 02546_ Critical hit (Burn: +37). 02548_ Slug penetrates Wall. 02577_ Penetrated by Slug. 02584_ H-55 Commando destroyed. 02589_ Acquired 34 matter. 02591_ Y-45 Defender destroyed. 02596_ Acquired 56 matter. Map ----- +----------------------------------------------------+ | ??????????????# + ??? | | ??????????????# # ??? | | ??????????????# # ??? | | ?????????????????????????### | | ?????????????????????????### | | ?????????????????????????## | | ????????????### ##### | | ????????????######+######## | | ????????????## #### | | ????????????## ! #### | | ????????????## #### | | ????????????## + | | ????????????## """ """ #### | | ????????????## """ """ #### | | ????????????## """ """ #### | | ????????????## #### | | ???#############+########## | | ???############# ##########/ | | ???## ## ## | | ???## ! ## ## | | ???## """ ## ## """"""" | | ???## """ ## + """"""" | | ???## "" """ ##### """"""" | | ##### S"" ##### """"""" | | ##### "" ! ##?## """"""" | | ## @/ ##### | | ##[######+#############+#### | | ##*##### | | ##[##? # w | | ##=##?## """ | | ##!##?## "R" | | ##!##### " " | | ##+##### """ """ | | # ## """ """ ### | | # """ ## """ """ ### | | # "T" ## # ? | | # ## # ? | | # ## """ """ """ # ? | | # """ + """ """ """ # ? | | # """ # """ """ ""? + ? | | # """ ## ?? # ? | | # ## ?? #+? | | #! [ ## ??? ? | | # ####### ??????? | | # / ####### ???????? | | ########?????? ??????? | | ########?????? ######??????? | | ?????????????? # ??????? | | ???????????????????????????? | | ???????????????????????????? | +----------------------------------------------------+ Best States ------------- Heat Dissipation 31 Energy Generation 14 Energy Capacity 240 Matter Stores 300 Matter Capacity 300 Sight Range 16 Terrain Scan Density 10 Evasion (%) 40 Recoil Reduction 2 Item Schematics ----------------- None Robot Schematics ------------------ None Fabricated ------------ Nothing Alien Tech Used ----------------- None Achievements -------------- None Challenges ------------ None Game ------ Seed FactoryDerelictBeamcaster Manual? 0 Play Time 00:28:19 Cumulative 37.6 hours Start 2024.09.02 @ 16:51:05 End 2024.09.02 @ 17:17:04 Sessions 1 Manual Loads 0 Difficulty Rogue Special Mode None Game No. 38 Rogue 38 Adventurer 0 Explorer 0 Win Type - Total 0 Types 0/0/0/0/0/0/0/0/0 Lore% 14 Gallery% 20 Achievement% 21 Wizard Run 0 Options --------- Layout 0 ASCII 0 Keyboard 0 Movement Mouse Keybinds 0 Fullscreen 1 Font 16/TerminusTall Map View 75x55 Zoom Use 0% Tactical HUD 1 Map Filters NONE Filters NONE Steam 1 RUN: 26d272e0-cc0c-4ed2-8337-1df9bb5b56ae